Workbook

Sheet bullet
A1: BB弾 弾道計算プログラム ver1.2 | AB1: 統計情報
AB2: 平均 | AC2: =AVERAGEIF(AC6:AC36,"<>") -> 0.878044052 | AD2: =AVERAGEIF(AD6:AD36,"<>") -> 40 | AE2: =AVERAGEIF(AE6:AE36,"<>") -> -0.06267193301 | AF2: =AVERAGEIF(AF6:AF36,"<>") -> 0.9451436436 | AG2: =AVERAGEIF(AG6:AG36,"<>") -> 0.06460114992
AB3: 不確かさ | AC3: =SQRT(_xlfn.VAR.S(AC6:AC36)) -> 0.0001901374859 | AD3: =SQRT(_xlfn.VAR.S(AD6:AD36)) -> 0 | AE3: =SQRT(_xlfn.VAR.S(AE6:AE36)) -> 0.0706303986 | AF3: =SQRT(_xlfn.VAR.S(AF6:AF36)) -> 0.1014458085 | AG3: =SQRT(_xlfn.VAR.S(AG6:AG36)) -> 6.944411471e-05
A4: 入力項目 | G4: 出力結果 | L4: 時間 | M4: 位置 | P4: 速度 | S4: 回転 | V4: 風 | Y4: エネルギー | AB4: 着弾位置記録用 | AH4: 初期条件の記録 | AS4: 円形表記用
D5: 値 | E5: 単位 | I5: 値 | J5: 単位 | L5: t (s) | M5: x (m) | N5: y (m) | O5: z (m) | P5: x (m/s) | Q5: y (m/s) | R5: z (m/s) | S5: x (回転/s) | T5: y (回転/s) | U5: z (回転/s) | V5: x (m/s) | W5: y (m/s) | X5: z (m/s) | Y5: E (J) | AB5: Index | AC5: t (s) | AD5: x(m) | AE5: y(m) | AF5: z(m) | AG5: E(J) | AH5: BB弾直径(mm) | AI5: 重さ(g) | AJ5: 射出エネルギー(J) | AK5: 銃口の高さ(m) | AL5: 横方向の速度(m/s) | AM5: 射出角度(°) | AN5: 回転x(回転/s) | AO5: ホップ回転量(回転/s) | AP5: 回転z(回転/s) | AS5: 角度 | AT5: y | AU5: z
A6: BB弾のパラメータ | C6: BB弾直径 | D6: 5.95 | E6: mm | G6: 定数 | H6: 空気密度 | I6: 1.201226008 | J6: kg m-3 | L6: 0 | M6: 0 | N6: 0 | O6: 1 | P6: 94.86829368 | Q6: 0 | R6: -0.08278822504 | S6: 0 | T6: 208 | U6: 6 | V6: 0 | W6: 0 | X6: 0 | Y6: 0.9 | AB6: 1 | AC6: 0.8781351359 | AD6: 40 | AE6: 0 | AF6: 0.9991906446 | AG6: 0.06456521472 | AH6: 5.95 | AI6: 0.2 | AJ6: 0.9 | AK6: 1 | AL6: 0 | AM6: 0 | AN6: 0 | AO6: 208 | AP6: 0 | AS6: 0 | AT6: =$AE$3*COS(AS6)/2+$AE$2 -> -0.02735673371 | AU6: =$AF$3*SIN(AS6)/2+$AF$2 -> 0.9451436436
C7: 重さ | D7: 0.2 | E7: g | H7: 空気粘性率 | I7: 1.819713849e-05 | J7: kg m-1 s-1 | L7: 0.02 | M7: 1.839548057 | N7: 0.0001087911078 | O7: 1.000244412 | P7: 89.20483335 | Q7: 0.01064414865 | R7: 0.1008701802 | S7: 0 | T7: 206.1065035 | U7: 5.94537991 | V7: 0 | W7: 0 | X7: 0 | Y7: 0.7957512581 | AB7: 2 | AC7: 0.8781465812 | AD7: 40 | AE7: -0.1253626356 | AF7: 0.9991732758 | AG7: 0.06456401424 | AH7: 5.95 | AI7: 0.2 | AJ7: 0.9 | AK7: 1 | AL7: 0 | AM7: 0 | AN7: 0 | AO7: 208 | AP7: 10 | AS7: 0.1047197551 | AT7: =$AE$3*COS(AS7)/2+$AE$2 -> -0.02755019406 | AU7: =$AF$3*SIN(AS7)/2+$AF$2 -> 0.9504456308
C8: 射出エネルギー | D8: 0.9 | E8: J | L8: 0.04 | M8: 3.572507709 | N8: 0.0004172000092 | O8: 1.003803017 | P8: 84.18951701 | Q8: 0.02000144735 | R8: 0.249706952 | S8: 0 | T8: 204.2851584 | U8: 5.892841108 | V8: 0 | W8: 0 | X8: 0 | Y8: 0.7087937528 | AB8: 3 | AC8: 0.8784218455 | AD8: 40 | AE8: -0.1254064203 | AF8: 1.138129823 | AG8: 0.06446732478 | AH8: 5.95 | AI8: 0.2 | AJ8: 0.9 | AK8: 1 | AL8: 0 | AM8: 0.2 | AN8: 0 | AO8: 208 | AP8: 10 | AS8: 0.2094395102 | AT8: -0.02812845554 | AU8: 0.9556895284
C9: 銃口の高さ | D9: 1 | E9: m | G9: 射出高さ に着弾 | H9: 時間 | I9: 0.854 | J9: s | L9: 0.06 | M9: 5.210736119 | N9: 0.0009016903211 | O9: 1.010039069 | P9: 79.71603793 | Q9: 0.02828349423 | R9: 0.3694612528 | S9: 0 | T9: 202.5297164 | U9: 5.842203358 | V9: 0 | W9: 0 | X9: 0 | Y9: 0.6354784006 | AB9: 4 | AC9: 0.8777702177 | AD9: 40 | AE9: -0.1253010896 | AF9: 0.7907406724 | AG9: 0.06470525719 | AH9: 5.95 | AI9: 0.2 | AJ9: 0.9 | AK9: 1 | AL9: 0 | AM9: -0.3 | AN9: 0 | AO9: 208 | AP9: 10 | AS9: 0.3141592654 | AT9: -0.02908518259 | AU9: 0.960817883
C10: 横方向の速度 | D10: 0 | E10: m s-1 | H10: 位置 | I10: 39.38311938 | J10: m | L10: 0.08 | M10: 6.764196946 | N10: 0.001542495836 | O10: 1.018418083 | P10: 75.70026613 | Q10: 0.03565785814 | R10: 0.4646783592 | S10: 0 | T10: 200.8347801 | U10: 5.793310964 | V10: 0 | W10: 0 | X10: 0 | Y10: 0.5730747489 | AB10: 5 | AC10: 0.8778907949 | AD10: 40 | AE10: -0.1253210521 | AF10: 0.8602185458 | AG10: 0.06465867886 | AH10: 5.95 | AI10: 0.2 | AJ10: 0.9 | AK10: 1 | AL10: 0 | AM10: -0.2 | AN10: 0 | AO10: 208 | AP10: 10 | AS10: 0.4188790205 | AT10: -0.0304098931 | AU10: 0.9657745074
C11: 射出角度 | D11: 0.05 | E11: ° | H11: 速度 | I11: 25.92205196 | J11: m s-1 | L11: 0.1 | M11: 8.241345551 | N11: 0.002322855401 | O11: 1.028487089 | P11: 72.0747322 | Q11: 0.0422590004 | R11: 0.5390056492 | S11: 0 | T11: 199.1956482 | U11: 5.746028314 | V11: 0 | W11: 0 | X11: 0 | Y11: 0.5195059335 | AB11: 6 | AC11: 0.8778822266 | AD11: 40 | AE11: -0.06265969667 | AF11: 0.8602315802 | AG11: 0.06465958061 | AH11: 5.95 | AI11: 0.2 | AJ11: 0.9 | AK11: 1 | AL11: 0 | AM11: -0.2 | AN11: 0 | AO11: 208 | AP11: 5 | AS11: 0.5235987756 | AT11: -0.03208807327 | AU11: 0.9705050957
C12: 回転(x軸) | D12: 0 | E12: 回転/s | H12: エネルギー | I12: 0.06719527779 | J12: J | L12: 0.12 | M12: 9.649420634 | N12: 0.003228433155 | O12: 1.039858903 | P12: 68.78468356 | Q12: 0.04819609076 | R12: 0.5954044681 | S12: 0 | T12: 197.6081958 | U12: 5.700236416 | V12: 0 | W12: 0 | X12: 0 | Y12: 0.4731689521 | AB12: 7 | AC12: 0.8780058113 | AD12: 40 | AE12: -0.03760186974 | AF12: 0.929711978 | AG12: 0.06461268427 | AH12: 5.95 | AI12: 0.2 | AJ12: 0.9 | AK12: 1 | AL12: 0 | AM12: -0.1 | AN12: 0 | AO12: 208 | AP12: 3 | AS12: 0.6283185307 | AT12: -0.03410133661 | AU12: 0.9749578187
C13: ホップ回転量(-y軸) | D13: 208 | E13: 回転/s | L13: 0.14 | M13: 10.99466838 | N13: 0.004246872571 | O13: 1.052200035 | P13: 65.7852127 | Q13: 0.05355870347 | R13: 0.6363045599 | S13: 0 | T13: 196.0687792 | U13: 5.655830168 | V13: 0 | W13: 0 | X13: 0 | Y13: 0.4328101962 | AB13: 8 | AC13: 0.878070383 | AD13: 40 | AE13: -0.03760501331 | AF13: 0.9644504823 | AG13: 0.06458895936 | AH13: 5.95 | AI13: 0.2 | AJ13: 0.9 | AK13: 1 | AL13: 0 | AM13: -0.05 | AN13: 0 | AO13: 208 | AP13: 3 | AS13: 0.7330382858 | AT13: -0.03642762539 | AU13: 0.9790838913
C14: 回転(z軸) | D14: -6 | E14: 回転/s | G14: 地面 に着弾 | H14: 時間 | I14: 1.279 | J14: s | L14: 0.16 | M14: 12.28251706 | N14: 0.005367448788 | O14: 1.065221251 | P14: 63.03913196 | Q14: 0.05842103639 | R14: 0.6637184794 | S14: 0 | T14: 194.574161 | U14: 5.612716184 | V14: 0 | W14: 0 | X14: 0 | Y14: 0.3974376094 | AB14: 9 | AC14: 0.8780734724 | AD14: 40 | AE14: 0.07521038027 | AF14: 0.96444579 | AG14: 0.06458863525 | AH14: 5.95 | AI14: 0.2 | AJ14: 0.9 | AK14: 1 | AL14: 0 | AM14: -0.05 | AN14: 0 | AO14: 208 | AP14: -6 | AS14: 0.837758041 | AT14: -0.03904145228 | AU14: 0.9828381074
H15: 位置 | I15: 48.80878472 | J15: m | L15: 0.18 | M15: 13.51771475 | N15: 0.006580794274 | O15: 1.078670134 | P15: 60.51537722 | Q15: 0.06284508231 | R15: 0.6793276058 | S15: 0 | T15: 193.121449 | U15: 5.57081103 | V15: 0 | W15: 0 | X15: 0 | Y15: 0.3662576315 | AS15: 0.9424777961 | AT15: -0.04191417968 | AU15: 0.9861793351
A16: 外的要因 | C16: 重力加速度 | D16: 9.80665 | E16: m s-2 | H16: 速度 | I16: 19.38646062 | J16: m s-1 | L16: 0.2 | M16: 14.70443907 | N16: 0.007878679941 | O16: 1.092325142 | P16: 58.18779288 | Q16: 0.06688304459 | R16: 0.6845476711 | S16: 0 | T16: 191.7080465 | U16: 5.530039803 | V16: 0 | W16: 0 | X16: 0 | Y16: 0.3386292319 | AS16: 1.047197551 | AT16: -0.04501433336 | AU16: 0.9890709672
C17: 温度 | D17: 20 | E17: ℃ | H17: エネルギー | I17: 0.03758348555 | J17: J | L17: 0.22 | M17: 15.84638566 | N17: 0.009253838773 | O17: 1.105990823 | P17: 56.03419581 | Q17: 0.07057919959 | R17: 0.6805792892 | S17: 0 | T17: 190.3316114 | U17: 5.490334944 | V17: 0 | W17: 0 | X17: 0 | Y17: 0.314029927 | AS17: 1.151917306 | AT17: -0.04830794739 | AU17: 0.9914813224
C18: 湿度 | D18: 60 | E18: % | L18: 0.24 | M18: 16.94683996 | N18: 0.0106998224 | O18: 1.119493922 | P18: 54.03564608 | Q18: 0.0739713484 | R18: 0.6684473505 | S18: 0 | T18: 188.9900227 | U18: 5.451635271 | V18: 0 | W18: 0 | X18: 0 | Y18: 0.2920303341 | AS18: 1.256637061 | AT18: -0.05175893626 | AU18: 0.9933839922
C19: 大気圧 | D19: 101325 | E19: Pa | L19: 0.26 | M19: 18.00873619 | N19: 0.01221088344 | O19: 1.132680188 | P19: 52.17587302 | Q19: 0.0770919602 | R19: 0.6490320494 | S19: 0 | T19: 187.6813522 | U19: 5.413885159 | V19: 0 | W19: 0 | X19: 0 | Y19: 0.2722748911 | AS19: 1.361356817 | AT19: -0.05532949021 | AU19: 0.9947581307
C20: 風(進行方向) | D20: 0 | E20: m s-1 | L20: 0.28 | M20: 19.03470594 | N20: 0.01378187835 | O20: 1.145411738 | P20: 50.44081932 | Q20: 0.07996908093 | R20: 0.6230935509 | S20: 0 | T20: 186.4038404 | U20: 5.377033858 | V20: 0 | W20: 0 | X20: 0 | Y20: 0.2544670894 | AS20: 1.466076572 | AT20: -0.05898048949 | AU20: 0.9955886825
C21: 風(横方向) | D21: 0 | E21: m s-1 | L21: 0.3 | M21: 20.02711869 | N21: 0.01540818643 | O21: 1.15756486 | P21: 48.81827566 | Q21: 0.08262706201 | R21: 0.5912917691 | S21: 0 | T21: 185.1558769 | U21: 5.34103491 | V21: 0 | W21: 0 | X21: 0 | Y21: 0.2383580492 | AS21: 1.570796327 | AT21: -0.06267193301 | AU21: 0.9958665478
C22: 風(上下方向) | D22: 0 | E22: m s-1 | L22: 0.32 | M22: 20.9881157 | N22: 0.01708564212 | O22: 1.169028174 | P22: 47.29758557 | Q22: 0.0850871491 | R22: 0.5542023552 | S22: 0 | T22: 183.9359827 | U22: 5.305845655 | V22: 0 | W22: 0 | X22: 0 | Y22: 0.2237375981 | AS22: 1.675516082 | AT22: -0.06636337652 | AU22: 0.9955886825
C23: 着弾距離 | D23: 40 | E23: m | L23: 0.34 | M23: 21.91963859 | N23: 0.01881047773 | O23: 1.17970108 | P23: 45.86940526 | Q23: 0.08736796164 | R23: 0.5123297167 | S23: 0 | T23: 182.7427961 | U23: 5.27142681 | V23: 0 | W23: 0 | X23: 0 | Y23: 0.2104272454 | AS23: 1.780235837 | AT23: -0.0700143758 | AU23: 0.9947581307
L24: 0.36 | M24: 22.82345358 | N24: 0.02057927508 | O24: 1.189492445 | P24: 44.52550674 | Q24: 0.08948588596 | R24: 0.466117693 | S24: 0 | T24: 181.5750594 | U24: 5.237742099 | V24: 0 | W24: 0 | X24: 0 | Y24: 0.1982746024 | AS24: 1.884955592 | AT24: -0.07358492975 | AU24: 0.9933839922
A25: 数値計算上のパラメータ | C25: 回転の減衰 | D25: yes | L25: 0.38 | M25: 23.70117206 | N25: 0.02238892413 | O25: 1.198319482 | P25: 43.25861547 | Q25: 0.09145539967 | R25: 0.4159583665 | S25: 0 | T25: 180.4316088 | U25: 5.204757946 | V25: 0 | W25: 0 | X25: 0 | Y25: 0.1871489197 | AS25: 1.989675347 | AT25: -0.07703591862 | AU25: 0.9914813224
C26: RK刻み幅 | D26: 0.001 | E26: 秒間隔 | L26: 0.4 | M26: 24.55426838 | N26: 0.02423658757 | O26: 1.20610679 | P26: 42.06227558 | Q26: 0.09328934101 | R26: 0.3621993786 | S26: 0 | T26: 179.3113639 | U26: 5.17244319 | V26: 0 | W26: 0 | X26: 0 | Y26: 0.1769374919 | AS26: 2.094395102 | AT26: -0.08032953265 | AU26: 0.9890709672
C27: 出力間隔 | D27: 20 | E27: 回ごと | L27: 0.42 | M27: 25.38409496 | N27: 0.02611967038 | O27: 1.212785529 | P27: 40.93073744 | Q27: 0.09499913375 | R27: 0.3051500389 | S27: 0 | T27: 178.2133204 | U27: 5.140768856 | V27: 0 | W27: 0 | X27: 0 | Y27: 0.1675427409 | AS27: 2.199114858 | AT27: -0.08342968634 | AU27: 0.9861793351
C28: 計算繰り返し回数 | D28: 5000 | E28: 回 | L28: 0.44 | M28: 26.19189552 | N28: 0.02803579348 | O28: 1.218292703 | P28: 39.85886321 | Q28: 0.09659497595 | R28: 0.2450864553 | S28: 0 | T28: 177.1365418 | U28: 5.109707937 | V28: 0 | W28: 0 | X28: 0 | Y28: 0.1588798374 | AS28: 2.303834613 | AT28: -0.08630241373 | AU28: 0.9828381074
L29: 0.46 | M29: 26.97881644 | N29: 0.02998277083 | O29: 1.222570546 | P29: 38.84204725 | Q29: 0.09808599924 | R29: 0.1822558612 | S29: 0 | T29: 176.0801541 | U29: 5.079235214 | V29: 0 | W29: 0 | X29: 0 | Y29: 0.1508747473 | AS29: 2.408554368 | AT29: -0.08891624063 | AU29: 0.9790838913
L30: 0.48 | M30: 27.74591677 | N30: 0.03195858951 | O30: 1.225565976 | P30: 37.8761487 | Q30: 0.09948040382 | R30: 0.1168802856 | S30: 0 | T30: 175.0433392 | U30: 5.049327091 | V30: 0 | W30: 0 | X30: 0 | Y30: 0.1434626197 | AS30: 2.513274123 | AT30: -0.0912425294 | AU30: 0.9749578187
L31: 0.5 | M31: 28.49417687 | N31: 0.03396139225 | O31: 1.227230128 | P31: 36.95743396 | Q31: 0.1007855735 | R31: 0.04915967792 | S31: 0 | T31: 174.0253303 | U31: 5.019961452 | V31: 0 | W31: 0 | X31: 0 | Y31: 0.1365864499 | AS31: 2.617993878 | AT31: -0.09325579274 | AU31: 0.9705050957
A32: 参考設定 | L32: 0.52 | M32: 29.22450611 | N32: 0.03598946212 | O32: 1.227517937 | P32: 36.08252766 | Q32: 0.1020081738 | R32: -0.02072541863 | S32: 0 | T32: 173.0254077 | U32: 4.991117529 | V32: 0 | W32: 0 | X32: 0 | Y32: 0.1301959637 | AS32: 2.722713633 | AT32: -0.09493397291 | AU32: 0.9657745074
A33: 射出角0° | L33: 0.54 | M33: 29.93774958 | N33: 0.03804120907 | O33: 1.226387774 | P33: 35.24837048 | Q33: 0.1031542367 | R33: -0.09261157211 | S33: 0 | T33: 172.0428942 | U33: 4.962775793 | V33: 0 | W33: 0 | X33: 0 | Y33: 0.1242466839 | AS33: 2.827433388 | AT33: -0.09625868342 | AU33: 0.960817883
A34: 重さ＼距離 | B34: 20m | C34: 30m | D34: 40m | L34: 0.56 | M34: 30.63469401 | N34: 0.04011515793 | O34: 1.223801125 | P34: 34.45218284 | Q34: 0.1042292331 | R34: -0.1663504827 | S34: 0 | T34: 171.0771521 | U34: 4.934917848 | V34: 0 | W34: 0 | X34: 0 | Y34: 0.1186991439 | AS34: 2.932153143 | AT34: -0.09721541047 | AU34: 0.9556895284
A35: 0.16g | L35: 0.58 | M35: 31.3160731 | N35: 0.04220993787 | O35: 1.219722305 | P35: 33.69143346 | Q35: 0.1052381359 | R35: -0.2418072708 | S35: 0 | T35: 170.1275797 | U35: 4.907526339 | V35: 0 | W35: 0 | X35: 0 | Y35: 0.1135182235 | AS35: 3.036872898 | AT35: -0.09779367195 | AU35: 0.9504456308
A36: 0.20g | L36: 0.6 | M36: 31.98257216 | N36: 0.04432427302 | O36: 1.214118204 | P36: 32.96381213 | Q36: 0.1061854746 | R36: -0.31885899 | S36: 0 | T36: 169.1936089 | U36: 4.880584872 | V36: 0 | W36: 0 | X36: 0 | Y36: 0.1086725857 | AS36: 3.141592654 | AT36: -0.0979871323 | AU36: 0.9451436436
A37: 0.25g | L37: 0.62 | M37: 32.63483231 | N37: 0.04645697406 | O37: 1.206958063 | P37: 32.26720595 | Q37: 0.1070753828 | R37: -0.3973933329 | S37: 0 | T37: 168.2747018 | U37: 4.854077937 | V37: 0 | W37: 0 | X37: 0 | Y37: 0.1041341966 | AS37: 3.246312409 | AT37: -0.09779367195 | AU37: 0.9398416564
A38: 0.28g | L38: 0.64 | M38: 33.27345422 | N38: 0.04860693073 | O38: 1.198213274 | P38: 31.59967857 | Q38: 0.10791164 | R38: -0.4773074985 | S38: 0 | T38: 167.3703492 | U38: 4.827990842 | V38: 0 | W38: 0 | X38: 0 | Y38: 0.09987791532 | AS38: 3.351032164 | AT38: -0.09721541047 | AU38: 0.9345977588
A39: ゼロイン距離 | L39: 0.66 | M39: 33.89900143 | N39: 0.05077310513 | O39: 1.187857195 | P39: 30.95945208 | Q39: 0.1086977075 | R39: -0.5585072006 | S39: 0 | T39: 166.480068 | U39: 4.802309655 | V39: 0 | W39: 0 | X39: 0 | Y39: 0.09588114189 | AS39: 3.455751919 | AT39: -0.09625868342 | AU39: 0.9294694042
A40: 重さ＼距離 | B40: 20m | C40: 30m | D40: 40m | E40: 50m | L40: 0.68 | M40: 34.51200338 | N40: 0.05295452567 | O40: 1.175864995 | P40: 30.344891 | Q40: 0.1094367612 | R40: -0.6409057957 | S40: 0 | T40: 165.6033996 | U40: 4.777021142 | V40: 0 | W40: 0 | X40: 0 | Y40: 0.09212351462 | AS40: 3.560471674 | AT40: -0.09493397291 | AU40: 0.9245127798
A41: 0.16g | L41: 0.7 | M41: 35.1129581 | N41: 0.05515028166 | O41: 1.162213504 | P41: 29.75448818 | Q41: 0.1101317191 | R41: -0.7244235139 | S41: 0 | T41: 164.7399078 | U41: 4.752112724 | V41: 0 | W41: 0 | X41: 0 | Y41: 0.08858664854 | AS41: 3.665191429 | AT41: -0.09325579274 | AU41: 0.9197821915
A42: 0.20g | L42: 0.72 | M42: 35.70233466 | N42: 0.05735951841 | O42: 1.146881085 | P42: 29.18685246 | Q42: 0.1107852665 | R42: -0.8089867795 | S42: 0 | T42: 163.8891775 | U42: 4.727572428 | V42: 0 | W42: 0 | X42: 0 | Y42: 0.08525390895 | AS42: 3.769911184 | AT42: -0.0912425294 | AU42: 0.9153294685
A43: 0.25g | L43: 0.74 | M43: 36.28057538 | N43: 0.05958143279 | O43: 1.129847516 | P43: 28.64069757 | Q43: 0.1113998782 | R43: -0.8945276086 | S43: 0 | T43: 163.0508133 | U43: 4.703388846 | V43: 0 | W43: 0 | X43: 0 | Y43: 0.08211021471 | AS43: 3.874630939 | AT43: -0.08891624063 | AU43: 0.9112033959
A44: 0.28g | L44: 0.76 | M44: 36.84809781 | N44: 0.06181526923 | O44: 1.111093884 | P44: 28.11483242 | Q44: 0.1119778379 | R44: -0.980983074 | S44: 0 | T44: 162.2244379 | U44: 4.679551094 | V44: 0 | W44: 0 | X44: 0 | Y44: 0.07914186687 | AS44: 3.979350695 | AT44: -0.08630241373 | AU44: 0.9074491798
A45: 上下振幅 | L45: 0.78 | M45: 37.40529656 | N45: 0.06406031606 | O45: 1.090602486 | P45: 27.60815234 | Q45: 0.1125212557 | R45: -1.068294829 | S45: 0 | T45: 161.4096912 | U45: 4.656048785 | V45: 0 | W45: 0 | X45: 0 | Y45: 0.07633639906 | AS45: 4.08407045 | AT45: -0.08342968634 | AU45: 0.9041079521
A46: 重さ＼振幅 | B46: 10cm | C46: 20cm | D46: 30cm | E46: 40cm | L46: 0.8 | M46: 37.95254495 | N46: 0.06631590222 | O46: 1.068356744 | P46: 27.11963139 | Q46: 0.1130320837 | R46: -1.156408681 | S46: 0 | T46: 160.6062289 | U46: 4.632871987 | V46: 0 | W46: 0 | X46: 0 | Y46: 0.07368244639 | AS46: 4.188790205 | AT46: -0.08032953265 | AU46: 0.90121632
A47: 0.16g | L47: 0.82 | M47: 38.4901965 | N47: 0.06858139423 | O47: 1.044341128 | P47: 26.64831535 | Q47: 0.11351213 | R47: -1.245274214 | S47: 0 | T47: 159.8137216 | U47: 4.610011201 | V47: 0 | W47: 0 | X47: 0 | Y47: 0.0711696304 | AS47: 4.29350996 | AT47: -0.07703591862 | AU47: 0.8988059648
A48: 0.20g | L48: 0.84 | M48: 39.01858632 | N48: 0.07085619341 | O48: 1.018541079 | P48: 26.19331558 | Q48: 0.1139630709 | R48: -1.334844443 | S48: 0 | T48: 159.0318541 | U48: 4.587457331 | V48: 0 | W48: 0 | X48: 0 | Y48: 0.06878845781 | AS48: 4.398229715 | AT48: -0.07358492975 | AU48: 0.896903295
A49: 0.25g | L49: 0.86 | M49: 39.53803236 | N49: 0.07313973343 | O49: 0.9909429455 | P49: 25.75380336 | Q49: 0.1143864623 | R49: -1.425075511 | S49: 0 | T49: 158.2603242 | U49: 4.56520166 | V49: 0 | W49: 0 | X49: 0 | Y49: 0.06653023119 | AS49: 4.50294947 | AT49: -0.0700143758 | AU49: 0.8955291565
A50: 0.28g | L50: 0.88 | M50: 40.04883654 | N50: 0.0754314779 | O50: 0.9615339265 | P50: 25.32900496 | Q50: 0.11478375 | R50: -1.515926414 | S50: 0 | T50: 157.4988419 | U50: 4.543235825 | V50: 0 | W50: 0 | X50: 0 | Y50: 0.06438697003 | AS50: 4.607669225 | AT50: -0.06636337652 | AU50: 0.8946986047
L51: 0.9 | M51: 40.55128582 | N51: 0.07773091838 | O51: 0.9303020133 | P51: 24.91819705 | Q51: 0.115156278 | R51: -1.607358748 | S51: 0 | T51: 156.747129 | U51: 4.521551799 | V51: 0 | W51: 0 | X51: 0 | Y51: 0.06235134075 | AS51: 4.71238898 | AT51: -0.06267193301 | AU51: 0.8944207394
A52: 使用について | L52: 0.92 | M52: 41.04565317 | N52: 0.08003757232 | O52: 0.897235941 | P52: 24.52070268 | Q52: 0.1155052978 | R52: -1.699336492 | S52: 0 | T52: 156.0049182 | U52: 4.50014187 | V52: 0 | W52: 0 | X52: 0 | Y52: 0.06041659458 | AS52: 4.817108736 | AT52: -0.05898048949 | AU52: 0.8946986047
A53: ➀ | L53: 0.94 | M53: 41.53219845 | N53: 0.08235098136 | O53: 0.8623251436 | P53: 24.13588753 | Q53: 0.1158319746 | R53: -1.791825794 | S53: 0 | T53: 155.2719522 | U53: 4.478998621 | V53: 0 | W53: 0 | X53: 0 | Y53: 0.05857651236 | AS53: 4.921828491 | AT53: -0.05532949021 | AU53: 0.8955291565
A54: 使用してはいけない目的 | C54: 企業が絡む営利活動 | L54: 0.96 | M54: 42.01116922 | N54: 0.08467070962 | O54: 0.8255597117 | P54: 23.76315663 | Q54: 0.1161373951 | R54: -1.884794799 | S54: 0 | T54: 154.5479838 | U54: 4.458114916 | V54: 0 | W54: 0 | X54: 0 | Y54: 0.05682535522 | AS54: 5.026548246 | AT54: -0.05175893626 | AU54: 0.896903295
A55: 使用してよい目的 | C55: 個人利用、同人活動 | L55: 0.98 | M55: 42.48280154 | N55: 0.08699634222 | O55: 0.7869303543 | P55: 23.40195128 | Q55: 0.1164225728 | R55: -1.978213471 | S55: 0 | T55: 153.8327746 | U55: 4.437483882 | V55: 0 | W55: 0 | X55: 0 | Y55: 0.05515782064 | AS55: 5.131268001 | AT55: -0.04830794739 | AU55: 0.8988059648
L56: 1 | M56: 42.9473206 | N56: 0.0893274839 | O56: 0.7464283644 | P56: 23.05174634 | Q56: 0.116688454 | R56: -2.072053449 | S56: 0 | T56: 153.1260951 | U56: 4.417098897 | V56: 0 | W56: 0 | X56: 0 | Y56: 0.05356900308 | AS56: 5.235987756 | AT56: -0.04501433336 | AU56: 0.90121632
B57: ➀で使用して良い目的ならば | L57: 1.02 | M57: 43.40494143 | N57: 0.09166375764 | O57: 0.7040455868 | P57: 22.71204768 | Q57: 0.1169359225 | R57: -2.166287903 | S57: 0 | T57: 152.4277239 | U57: 4.396953574 | V57: 0 | W57: 0 | X57: 0 | Y57: 0.05205435872 | AS57: 5.340707511 | AT57: -0.04191417968 | AU57: 0.9041079521
A58: ② | B58: ↓ | L58: 1.04 | M58: 43.85586944 | N58: 0.09400480357 | O58: 0.6597743883 | P58: 22.38238995 | Q58: 0.1171658046 | R58: -2.260891411 | S58: 0 | T58: 151.7374473 | U58: 4.377041749 | V58: 0 | W58: 0 | X58: 0 | Y58: 0.05060967378 | AS58: 5.445427266 | AT58: -0.03904145228 | AU58: 0.9074491798
A59: 行って良い事 | C59: 使用、改変、配布、非営利目的での利用、同人活動程度の営利目的 | L59: 1.06 | M59: 44.30030104 | N59: 0.09635027775 | O59: 0.6136076311 | P59: 22.06233445 | Q59: 0.1173788731 | R59: -2.355839841 | S59: 0 | T59: 151.055059 | U59: 4.35735747 | V59: 0 | W59: 0 | X59: 0 | Y59: 0.04923103604 | AS59: 5.550147021 | AT59: -0.03642762539 | AU59: 0.9112033959
L60: 1.08 | M60: 44.73842407 | N60: 0.09869985123 | O60: 0.5655386483 | P60: 21.75146723 | Q60: 0.1175758508 | R60: -2.45111025 | S60: 0 | T60: 150.3803596 | U60: 4.337894988 | V60: 0 | W60: 0 | X60: 0 | Y60: 0.04791480923 | AS60: 5.654866776 | AT60: -0.03410133661 | AU60: 0.9153294685
A61: ③ | B61: ↓ | L61: 1.1 | M61: 45.17041837 | N61: 0.101053209 | O61: 0.5155612206 | P61: 21.44939739 | Q61: 0.1177574146 | R61: -2.546680781 | S61: 0 | T61: 149.7131563 | U61: 4.318648741 | V61: 0 | W61: 0 | X61: 0 | Y61: 0.04665760982 | AS61: 5.759586532 | AT61: -0.03208807327 | AU61: 0.9197821915
A62: ②を行うために必要なもの | C62: クレジットの表記 | L62: 1.12 | M62: 45.59645615 | N62: 0.1034100493 | O62: 0.4636695555 | P62: 21.15575543 | Q62: 0.1179241984 | R62: -2.642530579 | S62: 0 | T62: 149.0532628 | U62: 4.29961335 | V62: 0 | W62: 0 | X62: 0 | Y62: 0.04545628619 | AS62: 5.864306287 | AT62: -0.0304098931 | AU62: 0.9245127798
L63: 1.14 | M63: 46.01670244 | N63: 0.1057700824 | O63: 0.4098582687 | P63: 20.87019183 | Q63: 0.1180767962 | R63: -2.738639711 | S63: 0 | T63: 148.4004984 | U63: 4.280783609 | V63: 0 | W63: 0 | X63: 0 | Y63: 0.04430789966 | AS63: 5.969026042 | AT63: -0.02908518259 | AU63: 0.9294694042
L64: 1.16 | M64: 46.43131547 | N64: 0.1081330303 | O64: 0.3541223656 | P64: 20.59237566 | Q64: 0.1182157647 | R64: -2.834989086 | S64: 0 | T64: 147.7546884 | U64: 4.262154474 | V64: 0 | W64: 0 | X64: 0 | Y64: 0.04320970736 | AS64: 6.073745797 | AT64: -0.02812845554 | AU64: 0.9345977588
A65: 使用方法 | L65: 1.18 | M65: 46.84044702 | N65: 0.1104986256 | O65: 0.2964572259 | P65: 20.3219934 | Q65: 0.1183416258 | R65: -2.931560391 | S65: 0 | T65: 147.1156634 | U65: 4.243721059 | V65: 0 | W65: 0 | X65: 0 | Y65: 0.04215914668 | AS65: 6.178465552 | AT65: -0.02755019406 | AU65: 0.9398416564
A66: 1 | B66: セルR6C4から始まる青いセルに計算条件を入力します（もしくは参考設定を選択します）。 | L66: 1.2 | M66: 47.24424278 | N66: 0.1128666112 | O66: 0.2368585879 | P66: 20.05874774 | Q66: 0.118454869 | R66: -3.028336028 | S66: 0 | T66: 146.483259 | U66: 4.225478624 | V66: 0 | W66: 0 | X66: 0 | Y66: 0.04115382114 | AS66: 6.283185307 | AT66: -0.02735673371 | AU66: 0.9451436436
A67: 2 | B67: セルR29C4にある計算開始ボタンをクリックすると計算を開始します。 | L67: 1.22 | M67: 47.64284262 | N67: 0.1152367393 | O67: 0.1753225356 | P67: 19.80235657 | Q67: 0.1185559538 | R67: -3.125299053 | S67: 0 | T67: 145.8573159 | U67: 4.207422574 | V67: 0 | W67: 0 | X67: 0 | Y67: 0.04019148752
B68: 計算が終了するとセルR6C12から始まる範囲に計算結果が出力されます。 | L68: 1.24 | M68: 48.03638095 | N68: 0.1176087712 | O68: 0.1118454856 | P68: 19.55255199 | Q68: 0.1186453109 | R68: -3.222433123 | S68: 0 | T68: 145.2376795 | U68: 4.189548447 | V68: 0 | W68: 0 | X68: 0 | Y68: 0.03927004414
B69: R6C28に入力項目”着弾距離”における着弾の広がりを計算できます | L69: 1.26 | M69: 48.42498691 | N69: 0.1199824763 | O69: 0.04642417579 | P69: 19.30907946 | Q69: 0.118723345 | R69: -3.31972245 | S69: 0 | T69: 144.6241997 | U69: 4.171851913 | V69: 0 | W69: 0 | X69: 0 | Y69: 0.0383875202
A70: 3 | B70: セルR1C29にあるボタンをクリックすると着弾距離の記録を消去します。 | L70: 1.28 | M70: 48.80878472 | N70: 0.122357632 | O70: -0.02094434542 | P70: 19.0716969 | Q70: 0.1187904358 | R70: -3.417151752 | S70: 0 | T70: 144.0167305 | U70: 4.154328765 | V70: 0 | W70: 0 | X70: 0 | Y70: 0.03754206599
A76: 作者名 | B76: シキノ
A77: URL | B77: https://slpr.sakura.ne.jp/qp
A78: 公開日 | B78: 2020-04-26
A79: 更新歴 | B79: 2020-04-26 | C79: ver1.0公開
B80: 2020-04-26 | C80: ver1.01 グラフの軸範囲修正, 出力順の順序変更
B81: 2020-05-30 | C81: ver1.1 集弾性に関するグラフ、プログラムの追加、使用方法の追加
B82: 2020-05-30 | C82: ver1.2 集弾性の分散を円形に表示

Sheet barrel
A1: BB弾 バレル内計算プログラム ver1.2
A3: ※電動エアガンを想定
A4: 入力項目 | G4: 出力結果 | L4: 時間 | M4: BB弾 | O4: ピストン | T4: 1気圧=101325Pa
D5: 値 | E5: 単位 | I5: 値 | J5: 単位 | L5: t | M5: 位置(cm) | N5: 速度(m/s) | O5: 位置(cm) | P5: BB弾基準位置(cm) | Q5: 速度(m/s) | R5: シリンダー体積((mm)3) | S5: 漏出空気((mm)3) | T5: 内部圧力(気圧)
A6: BB弾のパラメータ | C6: BB弾直径 | D6: 5.95 | E6: mm | G6: 定数 | H6: 空気密度 | I6: 1.201226008 | J6: kg m-3 | L6: 0 | M6: 0 | N6: 0 | O6: -6 | P6: -8 | Q6: 0 | R6: 18670.52441 | S6: -2.531172674e-13 | T6: 1
C7: 重さ | D7: 0.2 | E7: g | H7: 空気粘性率 | I7: 1.819713849e-05 | J7: kg m-1 s-1 | L7: 0.0004 | M7: 0 | N7: 0 | O7: -5.981606541 | P7: -7.981606541 | Q7: 0.9193459173 | R7: 18670.52441 | S7: -2.531172674e-13 | T7: 1
A8: バレル | C8: バレルの直径 | D8: 6.05 | E8: mm | H8: シリンダー体積 | I8: 18670.52441 | J8: (mm)3 | L8: 0.0008 | M8: 0 | N8: 0 | O8: -5.926504616 | P8: -7.926504616 | Q8: 1.834770687 | R8: 18670.52441 | S8: -2.531172674e-13 | T8: 1
C9: バレル長 | D9: 60 | E9: cm | L9: 0.0012 | M9: 0 | N9: 0 | O9: -5.834929242 | P9: -7.834929242 | Q9: 2.742369884 | R9: 18670.52441 | S9: -2.531172674e-13 | T9: 1
A10: シリンダー | C10: シリンダー直径 | D10: 24 | E10: mm | G10: 内圧=大気圧 の時 | H10: 時間 | I10: 0.01156 | J10: s | L10: 0.0016 | M10: 0 | N10: 0 | O10: -5.707271002 | P10: -7.707271002 | Q10: 3.638272463 | R10: 18670.52441 | S10: -2.531172674e-13 | T10: 1
A11: ピストン | C11: ピストンヘッド+ばねの重さ | D11: 22 | E11: g | H11: BB弾位置 | I11: 39.00361187 | J11: cm | L11: 0.002 | M11: 0 | N11: 0 | O11: -5.544074378 | P11: -7.544074378 | Q11: 4.518657264 | R11: 18670.52441 | S11: -2.531172674e-13 | T11: 1
A12: ばね | C12: ばね自然長 | D12: 150 | E12: mm | H12: BB弾速度 | I12: 115.7137853 | J12: m s-1 | L12: 0.0024 | M12: 0 | N12: 0 | O12: -5.346035428 | P12: -7.346035428 | Q12: 5.379769316 | R12: 18670.52441 | S12: -2.531172674e-13 | T12: 1
C13: ばね定数 | D13: 431 | E13: kg s-2 | H13: 内圧 | I13: 0.9999714378 | J13: (気圧) | L13: 0.0028 | M13: 0 | N13: 0 | O13: -5.113998817 | P13: -7.113998817 | Q13: 6.217935845 | R13: 18670.52441 | S13: -2.531172674e-13 | T13: 1
H14: 漏出空気量 | I14: 2885.289798 | J14: (mm)3 | L14: 0.0032 | M14: 0 | N14: 0 | O14: -4.848954216 | P14: -6.848954216 | Q14: 7.029581946 | R14: 18670.52441 | S14: -2.531172674e-13 | T14: 1
A15: BB弾の初期位置からシリンダーの先端まで | D15: 20 | E15: mm | L15: 0.0036 | M15: 0 | N15: 0 | O15: -4.552032081 | P15: -6.552032081 | Q15: 7.811245826 | R15: 18670.52441 | S15: -2.531172674e-13 | T15: 1
A16: シリンダーの先端からスリットの終端まで(セルR19C4がyesの場合のみ参照) | D16: 60 | E16: mm | G16: バレル長 の時 | H16: 時間 | I16: 0.008901 | J16: s | L16: 0.004 | M16: 0 | N16: 0 | O16: -4.224498828 | P16: -6.224498828 | Q16: 8.559593573 | R16: 18670.52441 | S16: -2.531172674e-13 | T16: 1
A17: シリンダーの先端からピストン初期位置まで | D17: 60 | E17: mm | H17: BB弾位置 | I17: 9.999402884 | J17: cm | L17: 0.0044 | M17: 0 | N17: 0 | O17: -3.867775533 | P17: -5.867775533 | Q17: 9.266405217 | R17: 18078.59084 | S17: 6.235827959 | T17: 1.046137371
A18: シリンダーの先端からばねの終端まで | D18: 120 | E18: mm | H18: BB弾速度 | I18: 90.3216108 | J18: m s-1 | L18: 0.0048 | M18: 0 | N18: 0 | O18: -3.484682898 | P18: -5.484682898 | Q18: 9.865789848 | R18: 16392.78377 | S18: 53.49900765 | T18: 1.19979025
A19: フルシリンダーno, 加速シリンダーyes | D19: no | H19: 内圧 | I19: 3.576725658 | J19: (気圧) | L19: 0.0052 | M19: 0 | N19: 0 | O19: -3.08051959 | P19: -5.08051959 | Q19: 10.31426382 | R19: 14640.02152 | S19: 129.1284913 | T19: 1.405596677
H20: 漏出空気量 | I20: 2105.874452 | J20: (mm)3 | L20: 0.0056 | M20: 0 | N20: 0 | O20: -2.662086922 | P20: -4.662086922 | Q20: 10.5712912 | R20: 12849.08375 | S20: 231.1355102 | T20: 1.687322506
A21: BB弾の射出に必要な力(※1) | D21: 0 | E21: N(=kg m s-2) | L21: 0.006 | M21: 0 | N21: 0 | O21: -2.238127657 | P21: -4.238127657 | Q21: 10.57910568 | R21: 11061.06756 | S21: 361.0658501 | T21: 2.081149409
L22: 0.0064 | M22: 0 | N22: 0 | O22: -1.820183253 | P22: -3.820183253 | Q22: 10.2538275 | R22: 9331.618826 | S22: 522.3530577 | T22: 2.64045844
A23: 外的要因 | C23: 温度 | D23: 20 | E23: ℃ | L23: 0.0068 | M23: 0.04867418736 | N23: 5.002955263 | O23: -1.423842366 | P23: -3.423842366 | Q23: 9.476143751 | R23: 7750.025439 | S23: 719.7709723 | T23: 3.424480864
C24: 湿度 | D24: 60 | E24: % | L24: 0.0072 | M24: 0.4951759434 | N24: 18.03422853 | O24: -1.069828544 | P24: -3.069828544 | Q24: 8.121627934 | R24: 6513.554868 | S24: 956.4629486 | T24: 4.367911363
C25: 大気圧 | D25: 101325 | E25: Pa | L25: 0.0076 | M25: 1.546677265 | N25: 35.13887689 | O25: -0.7820761147 | P25: -2.782076115 | Q25: 6.179573572 | R25: 5785.47096 | S25: 1227.859637 | T25: 5.15638003
L26: 0.008 | M26: 3.336986803 | N26: 54.48113933 | O26: -0.5800007823 | P26: -2.580000782 | Q26: 3.90601013 | R26: 5674.802205 | S26: 1516.688265 | T26: 5.297709043
A27: 数値計算上のパラメータ | C27: RK刻み幅 | D27: 1e-06 | E27: 秒間隔 | L27: 0.0084 | M27: 5.889348212 | N27: 72.67755359 | O27: -0.4677130434 | P27: -2.467713043 | Q27: 1.768106015 | R27: 6180.825229 | S27: 1796.94803 | T27: 4.700608418
C28: 出力間隔 | D28: 400 | E28: 回ごと | L28: 0.0088 | M28: 9.102281195 | N28: 87.28357283 | O28: -0.4320694615 | P28: -2.432069461 | Q28: 0.1058179112 | R28: 7194.45731 | S28: 2048.188802 | T28: 3.800334874
C29: 計算繰り返し回数 | D29: 50000 | E29: 回 | L29: 0.0092 | M29: 12.81826967 | N29: 97.89178881 | O29: -0.4520084566 | P29: -2.452008457 | Q29: -1.018279715 | R29: 8567.35761 | S29: 2262.632077 | T29: 2.97600372
L30: 0.0096 | M30: 16.88940071 | N30: 105.1858932 | O30: -0.5075133267 | P30: -2.507513327 | Q30: -1.691412811 | R30: 10167.14892 | S30: 2440.9754 | T30: 2.341748573
L31: 0.01 | M31: 21.20032353 | N31: 110.0122306 | O31: -0.5828015729 | P31: -2.582801573 | Q31: -2.024730389 | R31: 11892.81848 | S31: 2586.764855 | T31: 1.880270865
A32: 典型的なパラメータ設定 | L32: 0.0104 | M32: 25.66667924 | N32: 113.0544639 | O32: -0.6661808808 | P32: -2.666180881 | Q32: -2.1088754 | R32: 13670.70314 | S32: 2703.483182 | T32: 1.547076999
A33: フルシリンダー | L33: 0.0108 | M33: 30.22751016 | N33: 114.8039954 | O33: -0.7490747039 | P33: -2.749074704 | Q33: -2.009616005 | R33: 15446.7525 | S33: 2793.403202 | T33: 1.30390833
A34: 加速シリンダー | L34: 0.0112 | M34: 34.83838514 | N34: 115.6041535 | O34: -0.8251317028 | P34: -2.825131703 | Q34: -1.773541099 | R34: 17179.60336 | S34: 2856.667346 | T34: 1.123571559
A35: 流速チューン？ | L35: 0.0116 | M35: 39.46643447 | N35: 115.6966321 | O35: -0.8895837762 | P35: -2.889583776 | Q35: -1.434134636 | R35: 18829.23633 | S35: 2884.275844 | T35: 0.988219306
L36: 0.012 | M36: 44.0870958 | N36: 115.2604381 | O36: -0.938828443 | P36: -2.938828443 | Q36: -1.016893305 | R36: 20345.95702 | S36: 2849.892616 | T36: 0.8866449632
G37: 単位(N)への変換計算 | L37: 0.0124 | M37: 48.68190765 | N37: 114.4210137 | O37: -0.9701475832 | P37: -2.970147583 | Q37: -0.5404394575 | R37: 21753.89927 | S37: 2795.255215 | T37: 0.8073598802
A38: ※1 ホップを掛けるため、内圧がある程度高まらないと射出しない. | G38: 内圧(気圧) | H38: kg重(kgf) | I38: N (kg m s-2) | L38: 0.0128 | M38: 53.23657402 | N38: 113.2656864 | O38: -0.981458541 | P38: -2.981458541 | Q38: -0.01852040356 | R38: 23048.34141 | S38: 2729.173422 | T38: 0.7446009279
A39: この射出に必要な力を入力する（何らかの方法で実験的に測定する）。 | G39: 3 | H39: =I39/9.80665 -> 0.8618684924 | I39: =G39*(101325*PI()*(0.001*D6/2)^2) -> 8.452042651 | L39: 0.0132 | M39: 57.73983791 | N39: 111.8605323 | O39: -0.9711716665 | P39: -2.971171666 | Q39: 0.5377739299 | R39: 24222.48692 | S39: 2655.278232 | T39: 0.6945650097
A40: これを考えたくない場合、0を入力する事 | G40: =I40/(101325*PI()*(0.001*D6/2)^2) -> 3.480809458 | H40: 1 | I40: =H40*9.80665 -> 9.80665 | L40: 0.0136 | M40: 62.18277667 | N40: 110.2570401 | O40: -0.9381026167 | P40: -2.938102617 | Q40: 1.119161278 | R40: 25270.54339 | S40: 2575.700127 | T40: 0.6545739386
G41: =I41/(101325*PI()*(0.001*D6/2)^2) -> 0.3549437839 | H41: =I41/9.80665 -> 0.1019716213 | I41: 1 | L41: 0.014 | M41: 66.55830746 | N41: 108.496273 | O41: -0.8814111976 | P41: -2.881411198 | Q41: 1.717647147 | R41: 26188.09696 | S41: 2491.862331 | T41: 0.6226924597
L42: 0.0144 | M42: 70.86083009 | N42: 106.6116895 | O42: -0.8005571945 | P42: -2.800557194 | Q42: 2.326180078 | R42: 26972.1195 | S42: 2404.790518 | T42: 0.5975001486
A43: フルシリンダーにおけるパラメータが示す場所 | L43: 0.0148 | M43: 75.08596479 | N43: 104.6311305 | O43: -0.6952676675 | P43: -2.695267667 | Q43: 2.938415136 | R43: 27620.89737 | S43: 2315.264856 | T43: 0.5779446197
L44: 0.0152 | M44: 79.23035772 | N44: 102.5782582 | O44: -0.5655121987 | P44: -2.565512199 | Q44: 3.548548011 | R44: 28133.94872 | S44: 2223.90525 | T44: 0.5632434563
L45: 0.0156 | M45: 83.29153631 | N45: 100.4736253 | O45: -0.4114837655 | P45: -2.411483766 | Q45: 4.151196592 | R45: 28511.94768 | S45: 2131.22364 | T45: 0.5528171191
L46: 0.016 | M46: 87.26780175 | N46: 98.3354879 | O46: -0.2335836599 | P46: -2.23358366 | Q46: 4.741315071 | R46: 28756.65968 | S46: 2037.658404 | T46: 0.5462422774
L47: 0.0164 | M47: 91.15815036 | N47: 96.18043881 | O47: -0.032409365 | P47: -2.032409365 | Q47: 5.314130637 | R47: 28870.88797 | S47: 1943.598383 | T47: 0.5432189665
L48: 0.0168 | M48: 94.96174556 | N48: 93.98210099 | O48: 0 | P48: -2 | Q48: 0 | R48: 29721.24337 | S48: 1847.130394 | T48: 0.5215853197
L49: 0.0172 | M49: 98.67532842 | N49: 91.68059742 | O49: 0 | P49: -2 | Q49: 0 | R49: 30691.11862 | S49: 1749.442067 | T49: 0.4986563089
L50: 0.0176 | M50: 102.2949489 | N50: 89.28571368 | O50: 0 | P50: -2 | Q50: 0 | R50: 31631.83633 | S50: 1649.60806 | T50: 0.4780187767
L51: 0.018 | M51: 105.8170706 | N51: 86.80717586 | O51: 0 | P51: -2 | Q51: 0 | R51: 32542.6305 | S51: 1547.879005 | T51: 0.4593940921
L52: 0.0184 | M52: 109.2385219 | N52: 84.25352299 | O52: 0 | P52: -2 | Q52: 0 | R52: 33422.80202 | S52: 1444.46759 | T52: 0.4425467177
L53: 0.0188 | M53: 112.5564518 | N53: 81.63228676 | O53: 0 | P53: -2 | Q53: 0 | R53: 34271.71361 | S53: 1339.556087 | T53: 0.427276468
L54: 0.0192 | M54: 115.768293 | N54: 78.95013978 | O54: 0 | P54: -2 | Q54: 0 | R54: 35088.78483 | S54: 1233.302077 | T54: 0.4134123662
L55: 0.0196 | M55: 118.8717302 | N55: 76.21301854 | O55: 0 | P55: -2 | Q55: 0 | R55: 35873.48736 | S55: 1125.842866 | T55: 0.4008077276
L56: 0.02 | M56: 121.8646725 | N56: 73.42622619 | O56: 0 | P56: -2 | Q56: 0 | R56: 36625.34061 | S56: 1017.298964 | T56: 0.3893361965
L57: 0.0204 | M57: 124.7452297 | N57: 70.59451883 | O57: 0 | P57: -2 | Q57: 0 | R57: 37343.90772 | S57: 907.7768445 | T57: 0.3788885292
L58: 0.0208 | M58: 127.5116924 | N58: 67.72217849 | O58: 0 | P58: -2 | Q58: 0 | R58: 38028.79192 | S58: 797.3711726 | T58: 0.3693699683
L59: 0.0212 | M59: 130.1625139 | N59: 64.81307512 | O59: 0 | P59: -2 | Q59: 0 | R59: 38679.63325 | S59: 686.1666111 | T59: 0.3606980849
L60: 0.0216 | M60: 132.6962952 | N60: 61.87071959 | O60: 0 | P60: -2 | Q60: 0 | R60: 39296.10562 | S60: 574.2393089 | T60: 0.3528009985
A61: 加速シリンダーにおけるパラメータが示す場所 | L61: 0.022 | M61: 135.1117709 | N61: 58.89830913 | O61: 0 | P61: -2 | Q61: 0 | R61: 39877.91421 | S61: 461.6581326 | T61: 0.3456159004
L62: 0.0224 | M62: 137.4077982 | N62: 55.89876668 | O62: 0 | P62: -2 | Q62: 0 | R62: 40424.79306 | S62: 348.4856959 | T62: 0.339087824
L63: 0.0228 | M63: 139.5833463 | N63: 52.87477488 | O63: 0 | P63: -2 | Q63: 0 | R63: 40936.50307 | S63: 234.7792267 | T63: 0.3331686166
L64: 0.0232 | M64: 141.6374873 | N64: 49.82880587 | O64: 0 | P64: -2 | Q64: 0 | R64: 41412.83006 | S64: 120.591303 | T64: 0.3278160769
L65: 0.0236 | M65: 143.5693883 | N65: 46.7631473 | O65: 0 | P65: -2 | Q65: 0 | R65: 41853.5832 | S65: 5.970481113 | T65: 0.3229932303
L66: 0.024 | M66: 145.3783049 | N66: 43.67992532 | O66: 0 | P66: -2 | Q66: 0 | R66: 42258.59352 | S66: -109.038162 | T66: 0.3186677171
L67: 0.0244 | M67: 147.0635747 | N67: 40.58112497 | O67: 0 | P67: -2 | Q67: 0 | R67: 42627.71265 | S67: -224.3925595 | T67: 0.3148112774
L68: 0.0248 | M68: 148.6246121 | N68: 37.46860832 | O68: 0 | P68: -2 | Q68: 0 | R68: 42960.81176 | S68: -340.0532445 | T68: 0.3113993147
L69: 0.0252 | M69: 150.0609039 | N69: 34.34413085 | O69: 0 | P69: -2 | Q69: 0 | R69: 43257.78053 | S69: -455.9829877 | T69: 0.3084105294
L70: 0.0256 | M70: 151.3720053 | N70: 31.20935613 | O70: 0 | P70: -2 | Q70: 0 | R70: 43518.52639 | S70: -572.1464775 | T70: 0.3058266092
L71: 0.026 | M71: 152.5575363 | N71: 28.06586931 | O71: 0 | P71: -2 | Q71: 0 | R71: 43742.97378 | S71: -688.5100313 | T71: 0.3036319697
L72: 0.0264 | M72: 153.617179 | N72: 24.91518941 | O72: 0 | P72: -2 | Q72: 0 | R72: 43931.06364 | S72: -805.0413364 | T72: 0.3018135386
L73: 0.0268 | M73: 154.5506751 | N73: 21.7587808 | O73: 0 | P73: -2 | Q73: 0 | R73: 44082.7529 | S73: -921.7092118 | T73: 0.3003605786
L74: 0.0272 | M74: 155.357824 | N74: 18.59806384 | O74: 0 | P74: -2 | Q74: 0 | R74: 44198.01415 | S74: -1038.483389 | T74: 0.2992645425
L75: 0.0276 | M75: 156.0384812 | N75: 15.434425 | O75: 0 | P75: -2 | Q75: 0 | R75: 44276.83542 | S75: -1155.334308 | T75: 0.2985189605
L76: 0.028 | M76: 156.5925572 | N76: 12.26922645 | O76: 0 | P76: -2 | Q76: 0 | R76: 44319.22 | S76: -1272.232922 | T76: 0.2981193539
L77: 0.0284 | M77: 157.0200165 | N77: 9.103815354 | O77: 0 | P77: -2 | Q77: 0 | R77: 44325.18643 | S77: -1389.150511 | T77: 0.2980631753
A78: 使用について | L78: 0.0288 | M78: 157.3208775 | N78: 5.939532851 | O78: 0 | P78: -2 | Q78: 0 | R78: 44294.76855 | S78: -1506.058505 | T78: 0.2983497729
A79: ➀ | L79: 0.0292 | M79: 157.4952121 | N79: 2.777722759 | O79: 0 | P79: -2 | Q79: 0 | R79: 44228.01566 | S79: -1622.928299 | T79: 0.2989803778
A80: 使用してはいけない目的 | C80: 企業が絡む営利活動 | L80: 0.0296 | M80: 157.5431463 | N80: -0.3802611458 | O80: 0 | P80: -2 | Q80: 0 | R80: 44124.99279 | S80: -1739.731081 | T80: 0.2999581156
A81: 使用してよい目的 | C81: 個人利用、同人活動 | L81: 0.03 | M81: 157.4648615 | N81: -3.532954386 | O81: 0 | P81: -2 | Q81: 0 | R81: 43985.78127 | S81: -1856.437648 | T81: 0.3012880375
L82: 0.0304 | M82: 157.260604 | N82: -6.678595625 | O82: 0 | P82: -2 | Q82: 0 | R82: 43810.48168 | S82: -1973.018221 | T82: 0.3029771553
B83: ➀で使用して良い目的ならば | L83: 0.0308 | M83: 156.9306924 | N83: -9.815346577 | O83: 0 | P83: -2 | Q83: 0 | R83: 43599.2162 | S83: -2089.442253 | T83: 0.3050345047
A84: ② | B84: ↓ | L84: 0.0312 | M84: 156.4755199 | N84: -12.94132487 | O84: 0 | P84: -2 | Q84: 0 | R84: 43352.12933 | S84: -2205.678231 | T84: 0.3074712517
A85: 行って良い事 | C85: 使用、改変、配布、非営利目的での利用、同人活動程度の営利目的 | L85: 0.0316 | M85: 155.8955558 | N85: -16.05459377 | O85: 0 | P85: -2 | Q85: 0 | R85: 43069.38874 | S85: -2321.693454 | T85: 0.310300826
L86: 0.032 | M86: 155.1913485 | N86: -19.15315208 | O86: 0 | P86: -2 | Q86: 0 | R86: 42751.18612 | S86: -2437.453806 | T86: 0.3135390852
A87: ③ | B87: ↓ | L87: 0.0324 | M87: 154.3635275 | N87: -22.23492335 | O87: 0 | P87: -2 | Q87: 0 | R87: 42397.73828 | S87: -2552.923496 | T87: 0.3172045129
A88: ②を行うために必要なもの | C88: クレジットの表記 | L88: 0.0328 | M88: 153.4128072 | N88: -25.29774419 | O88: 0 | P88: -2 | Q88: 0 | R88: 42009.28836 | S88: -2668.064782 | T88: 0.3213184539
L89: 0.0332 | M89: 152.3399907 | N89: -28.33935144 | O89: 0 | P89: -2 | Q89: 0 | R89: 41586.10717 | S89: -2782.837655 | T89: 0.3259053931
A90: 作者名 | B90: シキノ | L90: 0.0336 | M90: 151.1459736 | N90: -31.35736803 | O90: 0 | P90: -2 | Q90: 0 | R90: 41128.49483 | S90: -2897.199489 | T90: 0.330993283
A91: URL | B91: https://slpr.sakura.ne.jp/qp | L91: 0.034 | M91: 149.8317492 | N91: -34.34928726 | O91: 0 | P91: -2 | Q91: 0 | R91: 40636.78253 | S91: -3011.104645 | T91: 0.3366139284
A92: 公開日 | B92: 2020-04-28 | L92: 0.0344 | M92: 148.3984139 | N92: -37.31245524 | O92: 0 | P92: -2 | Q92: 0 | R92: 40111.33457 | S92: -3124.504022 | T92: 0.3428034359
A93: 更新歴 | B93: 2020-04-28 | C93: ver1.0公開 | L93: 0.0348 | M93: 146.8471736 | N93: -40.24405117 | O93: 0 | P93: -2 | Q93: 0 | R93: 39552.5507 | S93: -3237.344537 | T93: 0.3496027408
B94: 2020-04-29 | C94: 体積に対する運動方程式のミス（バレルとBB弾の直径の間違い）を修正 | L94: 0.0352 | M94: 145.1793508 | N94: -43.14106513 | O94: 0 | P94: -2 | Q94: 0 | R94: 38960.86873 | S94: -3349.568531 | T94: 0.3570582221
B95: 2020-04-29 | C95: 加速シリンダー用のプログラムを追加 | L95: 0.0356 | M95: 143.3963924 | N95: -46.00027288 | O95: 0 | P95: -2 | Q95: 0 | R95: 38336.76757 | S95: -3461.113078 | T95: 0.3652224238
B96: 2020-04-30 | C96: ver1.11 加速シリンダー説明画像の変更 | L96: 0.036 | M96: 141.4998792 | N96: -48.81820726 | O96: 0 | P96: -2 | Q96: 0 | R96: 37680.77065 | S96: -3571.909173 | T96: 0.374154899
B97: 2020-04-30 | C97: ver1.12 加速シリンダー計算時の容量の変更 | L97: 0.0364 | M97: 139.4915359 | N97: -51.5911255 | O97: 0 | P97: -2 | Q97: 0 | R97: 36993.44983 | S97: -3681.880784 | T97: 0.3839231995
B98: 2020-05-09 | C98: ver1.2 ”BB弾の射出に必要な力”項目の追加 | L98: 0.0368 | M98: 137.3732433 | N98: -54.31497181 | O98: 0 | P98: -2 | Q98: 0 | R98: 36275.42994 | S98: -3790.943726 | T98: 0.3946040399
L99: 0.0372 | M99: 135.1470511 | N99: -56.98533432 | O99: 0 | P99: -2 | Q99: 0 | R99: 35527.39396 | S99: -3899.004309 | T99: 0.406284665
L100: 0.0376 | M100: 132.8151937 | N100: -59.59739554 | O100: 0 | P100: -2 | Q100: 0 | R100: 34750.08897 | S100: -4005.957732 | T100: 0.4190644629
L101: 0.038 | M101: 130.380107 | N101: -62.14587492 | O101: 0 | P101: -2 | Q101: 0 | R101: 33944.33316 | S101: -4111.686113 | T101: 0.4330568665
L102: 0.0384 | M102: 127.8444486 | N102: -64.62496235 | O102: 0 | P102: -2 | Q102: 0 | R102: 33111.02387 | S102: -4216.056096 | T102: 0.4483916003
L103: 0.0388 | M103: 125.2111205 | N103: -67.0282407 | O103: 0 | P103: -2 | Q103: 0 | R103: 32251.14712 | S103: -4318.915887 | T103: 0.4652173361
L104: 0.0392 | M104: 122.4832947 | N104: -69.3485956 | O104: 0 | P104: -2 | Q104: 0 | R104: 31365.78874 | S104: -4420.091546 | T104: 0.4837048308
L105: 0.0396 | M105: 119.6644436 | N105: -71.57810997 | O105: 0 | P105: -2 | Q105: 0 | R105: 30456.14776 | S105: -4519.382302 | T105: 0.5040506322
L106: 0.04 | M106: 116.7583745 | N106: -73.70794075 | O106: 0 | P106: -2 | Q106: 0 | R106: 29523.55227 | S106: -4616.554524 | T106: 0.5264814432
L107: 0.0404 | M107: 113.7692691 | N107: -75.72817441 | O107: 0 | P107: -2 | Q107: 0 | R107: 28569.47878 | S107: -4711.333846 | T107: 0.5512592359
L108: 0.0408 | M108: 110.7017299 | N108: -77.62765798 | O108: 0 | P108: -2 | Q108: 0 | R108: 27595.57604 | S108: -4803.394649 | T108: 0.5786871959
L109: 0.0412 | M109: 107.5608336 | N109: -79.39380161 | O109: 0 | P109: -2 | Q109: 0 | R109: 26603.69472 | S109: -4892.345656 | T109: 0.6091165295
L110: 0.0416 | M110: 104.3521929 | N110: -81.01234891 | O110: 0 | P110: -2 | Q110: 0 | R110: 25595.92565 | S110: -4977.709578 | T110: 0.6429540659
L111: 0.042 | M111: 101.0820285 | N111: -82.46711213 | O111: 0 | P111: -2 | Q111: 0 | R111: 24574.65039 | S111: -5058.89314 | T111: 0.680670354
L112: 0.0424 | M112: 97.75725216 | N112: -83.73967138 | O112: 0 | P112: -2 | Q112: 0 | R112: 23542.61173 | S112: -5135.140524 | T112: 0.7228074609
L113: 0.0428 | M113: 94.38556264 | N113: -84.80904285 | O113: 0 | P113: -2 | Q113: 0 | R113: 22503.01907 | S113: -5205.45551 | T113: 0.7699845648
L114: 0.0432 | M114: 90.97555502 | N114: -85.6513349 | O114: 0 | P114: -2 | Q114: 0 | R114: 21459.72482 | S114: -5268.456591 | T114: 0.8228966891
L115: 0.0436 | M115: 87.53684342 | N115: -86.23944619 | O115: 0 | P115: -2 | Q115: 0 | R115: 20417.57878 | S115: -5322.05776 | T115: 0.8822937178
L116: 0.044 | M116: 84.08019248 | N116: -86.54297719 | O116: 0 | P116: -2 | Q116: 0 | R116: 19383.43316 | S116: -5362.501401 | T116: 0.9488905939
L117: 0.0444 | M117: 80.61763536 | N117: -86.52954531 | O117: 0 | P117: -2 | Q117: 0 | R117: 18377.29261 | S117: -5373.242091 | T117: 1.022409746
L118: 0.0448 | M118: 77.16240585 | N118: -86.17218487 | O118: 0 | P118: -2 | Q118: 0 | R118: 17417.87656 | S118: -5339.364782 | T118: 1.102112254
L119: 0.0452 | M119: 73.7288899 | N119: -85.43742609 | O119: 0 | P119: -2 | Q119: 0 | R119: 16483.74018 | S119: -5286.449917 | T119: 1.190531959
L120: 0.0456 | M120: 70.33299288 | N120: -84.28392694 | O120: 0 | P120: -2 | Q120: 0 | R120: 15575.45616 | S120: -5218.497204 | T120: 1.288848998
L121: 0.046 | M121: 66.99237166 | N121: -82.66560402 | O121: 0 | P121: -2 | Q121: 0 | R121: 14696.56491 | S121: -5137.042162 | T121: 1.398031481
L122: 0.0464 | M122: 63.72660662 | N122: -80.53255555 | O122: -5.868324516e-05 | P122: -2.000058683 | Q122: -0.009013874701 | R122: 13852.18605 | S122: -5042.859506 | T122: 1.518775143
L123: 0.0468 | M123: 60.55730613 | N123: -77.83445205 | O123: -0.001685662245 | P123: -2.001685662 | Q123: -0.0857010986 | R123: 13054.86594 | S123: -4936.444092 | T123: 1.650204397
L124: 0.0472 | M124: 57.50792774 | N124: -74.53130431 | O124: -0.008013922476 | P124: -2.008013922 | Q124: -0.2447106017 | R124: 12324.99964 | S124: -4818.317601 | T124: 1.788617359
L125: 0.0476 | M125: 54.60311354 | N125: -70.6059843 | O125: -0.02238578645 | P125: -2.022385786 | Q125: -0.487789178 | R125: 11684.03171 | S125: -4689.239798 | T125: 1.927477447
L126: 0.048 | M126: 51.86751191 | N126: -66.07759502 | O126: -0.04811389042 | P126: -2.04811389 | Q126: -0.8113941864 | R126: 11152.89035 | S126: -4550.354292 | T126: 2.057200957
L127: 0.0484 | M127: 49.32406736 | N127: -61.01398531 | O127: -0.08823424393 | P127: -2.088234244 | Q127: -1.205001337 | R127: 10750.27396 | S127: -4403.293237 | T127: 2.16586697
L128: 0.0488 | M128: 46.99191299 | N128: -55.5380939 | O128: -0.1452061701 | P128: -2.14520617 | Q128: -1.650280472 | R128: 10490.6577 | S128: -4250.207501 | T128: 2.241275893
L129: 0.0492 | M129: 44.8842313 | N129: -49.8223781 | O129: -0.2206101565 | P129: -2.220610157 | Q129: -2.121924758 | R129: 10382.39114 | S129: -4093.687098 | T129: 2.27406452
L130: 0.0496 | M130: 43.00662426 | N130: -44.06905624 | O130: -0.3149184508 | P130: -2.314918451 | Q130: -2.59043989 | R130: 10426.38748 | S130: -3936.565665 | T130: 2.260641615
L131: 0.05 | M131: 41.35649488 | N131: -38.48061962 | O131: -0.4274077661 | P131: -2.427407766 | Q131: -3.026277387 | R131: 10615.82051 | S131: -3781.650762 | T131: 2.204368159
